Cogmind - Beta 14 @@@ ROGUE MODE // 2024.09.05 @ 17:57:03 Player: OctagonalPrism Result: Destroyed by G-34 Mercenary with Small Laser Performance ------------- Evolutions (1) 500 Regions Visited (2) 400 Robots Destroyed (51) 255 Value Destroyed (1271) 1271 Prototype IDs (5) 100 Alien Tech Used (0) 0 Bonus (0) 0 TOTAL SCORE: 2526 Bonus ------- None Cogmind --------- Core Integrity 0/400 Matter 179/300 Energy 265/265 System Corruption 0% Temperature Cool (22) Movement Treading (240) Ox1 Location -9/Materials Parts ------- > --- POWER (1) -------- Improved Ion Engine > --- PROPULSION (2) --- Light Treads > --- UTILITY (4) ------ Medium Storage Unit Structural Scanner Hardened Medium Armor Plating > --- WEAPON (2) ------- Particle Gun Rocket Launcher > --- INVENTORY (10) --- Light Treads Hardened Medium Armor Plating Hardened Medium Armor Plating Tractor Beam Particle Gun Peak State ------------ > --- POWER ------------ Improved Ion Engine > --- PROPULSION ------- Light Treads Light Treads > --- UTILITY ---------- Improved Heat Sink Medium Storage Unit Hardened Medium Armor Plating > --- WEAPON ----------- Heavy EM Shotgun Improved Assault Rifle > --- INVENTORY -------- Improved Ion Engine Light Treads Light Treads Hardened Medium Armor Plating Hardened Medium Armor Plating Hardened Medium Armor Plating Tractor Beam Particle Gun Rocket Launcher [Rating: 19] Favorites ----------- Power Improved Ion Engine Engine Improved Ion Engine Power Core Light Nuclear Core Propulsion Light Treads Treads Light Treads Utility Improved Heat Sink Device Improved Heat Sink Storage Medium Storage Unit Processor Targeting Computer Protection Hardened Medium Armor Plating Weapon Improved Assault Rifle Energy Gun Particle Gun Ballistic Gun Improved Assault Rifle Launcher Rocket Launcher Slashing Weapon Katana Build | -11 -10 -9 ------- Run | Yrd Mat Mat Slots Evolved 2 | . . 2 Power . | . . . Propulsion . | . . . Utility 2 | . . 2 Weapon . | . . . Parts Attached 40 | 6 5 29 Power 6 | 1 1 4 Engine 5 | 1 . 4 Core 1 | . 1 . Reactor . | . . . Propulsion 7 | 2 . 5 Treads 7 | 2 . 5 Leg . | . . . Wheel . | . . . Hover . | . . . Flight . | . . . Utility 11 | 1 2 8 Device 5 | . 2 3 Storage 2 | 1 . 1 Processor 1 | . . 1 Hackware . | . . . Protection 3 | . . 3 Artifact . | . . . Weapon 16 | 2 2 12 Energy Gun 8 | . 2 6 Energy Cannon . | . . . Ballistic Gun 4 | 2 . 2 Ballistic Cannon . | . . . Launcher 3 | . . 3 Special Weapon . | . . . Impact Weapon . | . . . Slashing Weapon 1 | . . 1 Piercing Weapon . | . . . Special Melee Weapon . | . . . Unidentified Prototypes 3 | . . 3 Parts Lost 15 | . 4 11 Power 3 | . 1 2 Propulsion 3 | . 1 2 Utility 3 | . . 3 Weapon 6 | . 2 4 Highest Loss Streak 7 | . 3 7 To Critical Strikes . | . . . Average Slot Usage (%) 90 | . 85 92 Engine 7 | . 3 8 Core 3 | . 7 1 Treads 19 | . 20 19 Device 13 | . 12 14 Storage 11 | . 14 11 Processor 4 | . . 5 Protection 7 | . . 9 Energy Gun 11 | . 13 10 Ballistic Gun 10 | . 13 10 Peak Build Rating 19 | 6 11 19 Average Rating 14 | 4 9 15 On Entrance 5 | . 6 11 Naked Turns . | . . . Heaviest Build 34 | 11 15 34 Greatest Support 40 | 40 40 40 Greatest Overweight (x) 1 | . . 1 Average Overweight (x) . | . . . Largest Inventory Capacity 10 | 8 8 10 Average Capacity 9 | 6 8 9 Most Carried 9 | 1 3 9 Average Carried 5 | . 2 6 Final Capacity 10 | 8 8 10 Final Carried 5 | 1 3 5 Class Distribution -------------------- 70% | Scavenger-Mutant 29% | Mutant Dominant Class ---------------- Scavenger-Mutant | -10/Materials Scavenger-Mutant | -9/Materials Resources | -11 -10 -9 ----------- Run | Yrd Mat Mat Matter Collected 860 | 260 168 432 Remotely 75 | . . 75 Salvage Created 1664 | . 427 1237 Parts 106 | . 39 67 Haulers Intercepted 1 | . . 1 Recyclers Shooed 4 | . . 4 Parts Field Recycled . | . . . Retrieved Matter . | . . . Parts Self-Destructed . | . . . Prevented . | . . . Kills | -11 -10 -9 ------- Run | Yrd Mat Mat Combat Hostiles Destroyed 36 | . 11 25 Guns 31 | . 11 20 AOE 5 | . . 5 Classes Destroyed 11 | . 4 7 Worker 2 | . . 2 Builder 1 | . . 1 Tunneler 1 | . . 1 Hauler 1 | . . 1 Recycler 2 | . . 2 Operator 2 | . 1 1 Watcher 6 | . 2 4 Swarmer 10 | . 3 7 Grunt 19 | . 8 11 Duelist 1 | . . 1 Sentry 6 | . . 6 Best Kill Streak 5 | . 4 5 Combat Bots Only 5 | . 4 5 Max Kills in Single Turn 2 | . 2 2 Gunslinging 1 | . 1 . Exploded 2 | . . 2 Melee . | . . . Uniques/NPCs Destroyed . | . . . Combat | -11 -10 -9 -------- Run | Yrd Mat Mat Hostile Shots Fired 287 | . 89 198 Missed 65 | . 18 47 Damage Taken 2764 | . 786 1978 Core 597 | . 190 407 Absorbed by Shields . | . . . Regen/Repaired (Parts) 254 | . . 254 Core Remaining (%) 62 | 100 24 . Volleys Fired 141 | . 56 85 Largest 2 | . 2 2 Hottest 105 | . 105 88 Shots Fired 259 | . 99 160 Gun 252 | . 99 153 Cannon . | . . . Launcher 7 | . . 7 Special . | . . . Kinetic 153 | . 75 78 Thermal 99 | . 24 75 Explosive 7 | . . 7 Electromagnetic . | . . . Robot Hit Streak 15 | . 13 15 Robot Miss Streak 5 | . 5 4 Penetration Max . | . . . Secondary Targets 4 | . 4 . Max Gunslinging Chain 1 | . 1 . Shots Hit Robots 177 | . 54 123 Core Hits 86 | . 25 61 Critical Kills . | . . . Critical Parts Destroyed 1 | . . 1 Critical Strikes 2 | . . 2 Burn 1 | . . 1 Destroy 1 | . . 1 Melee Attacks 1 | . . 1 Impact . | . . . Slashing 1 | . . 1 Piercing . | . . . Sneak Attacks . | . . . Combat Hostiles . | . . . Follow-up Attacks . | . . . Damage Inflicted 3038 | . 601 2437 Guns 2407 | . 601 1806 Cannons . | . . . Explosions 619 | . . 619 Melee . | . . . Ramming 12 | . . 12 Kinetic 1488 | . 479 1009 Thermal 919 | . 122 797 Explosive 619 | . . 619 Electromagnetic . | . . . Impact . | . . . Slashing . | . . . Piercing . | . . . Highest Corruption . | . . . Average Corruption . | . . . Corruption Purged . | . . . Corruption Blocked . | . . . Overload Shots . | . . . Overflow Damage 7 | . . 7 Projectiles . | . . . Explosions 7 | . . 7 Melee . | . . . Knockbacks . | . . . Impact . | . . . Kinetic . | . . . Secondary . | . . . Self-Inflicted Damage 79 | . . 79 Shots 2 | . . 2 Rammed 3 | . 1 2 Targets Rammed 3 | . 1 2 Kicked . | . . . Crushed . | . . . Highest Temperature 377 | . 40 377 Average Temperature 27 | . 12 38 Received Heat Transfer 1146 | . 387 759 Siege Activations . | . . . Robots Corrupted . | . . . Combat Hostiles . | . . . Parts Fried . | . . . Impact Corruptions . | . . . Robots Melted . | . . . Combat Hostiles . | . . . Parts Melted 3 | . . 3 Heat Transferred 2301 | . 273 2028 Parts Sabotaged . | . . . Parts Stolen . | . . . Parts Stripped . | . . . Power Chain Reactions . | . . . Alert | -11 -10 -9 ------- Run | Yrd Mat Mat Peak Influence 355 | . 264 355 Initial 41 | . . 41 Average 186 | . 112 216 Maximum Alert Level 1 | . 1 1 Low Security (%) 47 | 100 77 36 Level 1 52 | . 22 63 Level 2 . | . . . Level 3 . | . . . Level 4 . | . . . Level 5 . | . . . High Security . | . . . Max Security . | . . . Squads Dispatched 6 | . 2 4 Investigation 4 | . 1 3 Extermination . | . . . Reinforcement 2 | . 1 1 Assault . | . . . Garrison . | . . . Intercept . | . . . Searches Triggered . | . . . Construction Impeded . | . . . Haulers Reinforced . | . . . Active Scanning Responses . | . . . Cargo Convoy Interrupts . | . . . Stealth | -11 -10 -9 --------- Run | Yrd Mat Mat Distress Signals 3 | . 1 2 Communications Jammed . | . . . Distress Signals . | . . . Times Spotted 61 | . 23 38 Peak Tracking Total 7 | . 6 7 Tactical Retreats 2 | . 2 . Traps | -11 -10 -9 ------- Run | Yrd Mat Mat Traps Triggered 5 | . 1 4 Indirectly . | . . . Trap Hack Attempts . | . . . Triggered . | . . . Disarmed . | . . . Reprogrammed . | . . . Reused . | . . . Traps Extracted . | . . . Installed . | . . . Triggered . | . . . Machines | -11 -10 -9 ---------- Run | Yrd Mat Mat Machines Disabled . | . . . Max in Single Turn . | . . . Machines Repaired . | . . . Machines Dismantled . | . . . Machines Sabotaged . | . . . Overloaded Fab Kills . | . . . Hacking | -11 -10 -9 --------- Run | Yrd Mat Mat Machines Accessed 8 | . 2 6 Terminals 4 | . 1 3 Fabricators . | . . . Repair Stations 2 | . . 2 Recycling Units 1 | . 1 . Scanalyzers 1 | . . 1 Garrison Access . | . . . Total Hacks 21 | . 7 14 Successful 13 | . 3 10 Failed 8 | . 4 4 Catastrophic . | . . . Database Lockouts . | . . . Manual 12 | . 5 7 Terminals 12 | . 3 9 Fabricators . | . . . Repair Stations 4 | . . 4 Recycling Units 4 | . 4 . Scanalyzers 1 | . . 1 Garrison Access . | . . . Terminal Hacks 3 | . 1 2 Record 1 | . 1 . Prototype ID Bank 1 | . . 1 Alert Level 1 | . . 1 Fabricator Hacks . | . . . Repair Station Hacks 4 | . . 4 Scan Component 2 | . . 2 Repair 2 | . . 2 Recycling Unit Hacks . | . . . Scanalyzer . | . . . Garrison Access Hacks . | . . . Unauthorized Hacks 6 | . 2 4 Terminals 4 | . 1 3 Botnet 3 | . 1 2 Operators 1 | . . 1 Fabricators . | . . . Repair Stations . | . . . Recycling Units 1 | . 1 . Mask 1 | . 1 . Scanalyzers 1 | . . 1 Extract 1 | . . 1 Garrison Access . | . . . Data Cores Recovered 1 | . . 1 Used . | . . . Hacking Detections 6 | . 2 4 Full Trace Events 1 | . . 1 Feedback Events . | . . . Feedback Blocked . | . . . Robot Schematics Acquired . | . . . Robots Built . | . . . Authchips . | . . . Time . | . . . Total Robot Build Rating . | . . . Part Schematics Acquired 2 | . . 2 Parts Built . | . . . Authchips . | . . . Time . | . . . Total Part Build Rating . | . . . Parts Repaired 2 | . . 2 Time 77 | . . 77 Parts Recycled . | . . . Recycled Matter . | . . . Retrieved Matter . | . . . Retrieved Components . | . . . Parts Scanalyzed . | . . . Part Schematics Acquired . | . . . Parts Damaged . | . . . Bothacking | -11 -10 -9 ------------ Run | Yrd Mat Mat Used RIF Installer . | . . . Robots Hacked . | . . . Non-combat . | . . . Combat . | . . . Robot Hacks Applied . | . . . Relay Couplers Released . | . . . Fabnet Peak Effective % . | . . . Robots Rewired . | . . . Allies Hacked . | . . . Hacks Repelled . | . . . Allies | -11 -10 -9 -------- Run | Yrd Mat Mat Total Allies . | . . . Largest Group . | . . . Highest-Rated Group . | . . . Highest-Rated Ally . | . . . Total Orders . | . . . Ally Attacks . | . . . Total Damage . | . . . Kills . | . . . Allies Corrupted . | . . . Allies Melted . | . . . Intel | -11 -10 -9 ------- Run | Yrd Mat Mat Robot Analysis Total . | . . . Derelict Logs Recovered . | . . . Drone Launches . | . . . Drone Recoveries . | . . . Exploration | -11 -10 -9 ------------- Run | Yrd Mat Mat Turns Passed 2543 | 82 569 1892 Spaces Moved 1189 | 47 243 899 Core 2 | 2 . . Treads 1187 | 45 243 899 Legs . | . . . Wheels . | . . . Hover . | . . . Flight . | . . . Fastest Speed 50 | 50 160 160 Average Speed 160 | 155 160 160 Slowest Speed 240 | 160 160 240 Overloaded Moves . | . . . Propulsion Burnouts . | . . . Robots Hopped . | . . . Cave-ins Triggered . | . . . Exploration Rate (%) 35 | 4 37 64 Regions Visited 2 Branch Regions . Pre-discovered Areas . | . . . Known Exits Taken . | . . . Unknown Exits Taken 2 | 1 1 . Scrap Searched . | . . . Spaces Dug 4 | . . 4 Terrain Destroyed 58 | . . 58 Melee . | . . . Projectile . | . . . AOE 58 | . . 58 Terrain Rammed . | . . . Walls Destroyed . | . . . Machines Disabled . | . . . Actions | -11 -10 -9 --------- Run | Yrd Mat Mat Total 1568 | 53 330 1185 Wait 171 | . 23 148 Move 1187 | 46 242 899 Hop . | . . . Pick Up 10 | 1 2 7 Fast Attach 21 | 6 4 11 Attach 10 | . . 10 Detach 7 | . . 7 Swap 9 | . 1 8 Drop 8 | . 1 7 Fire 141 | . 56 85 Melee 1 | . . 1 Ram . | . . . Kick . | . . . Crush 3 | . 1 2 Escape Stasis . | . . . Rewire . | . . . Trap . | . . . Miscellaneous . | . . . Route ------- -11/Scrapyard -10/Materials -9/Materials (discovered 2 exits: [*Mat x2]) History --------- Turn | Location | Event 9 | -11/Scrapyard | Discovered new exit (range 13) 83 | -11/Scrapyard | Entered Materials 300 | -10/Materials | Build established: Mutant 342 | -10/Materials | Core integrity fell below 50% 391 | -10/Materials | Lost 3 parts (1n2w) 618 | -10/Materials | Discovered new exit (range 3) 652 | -10/Materials | Entered another Materials area 652 | -9/Materials | Evolved 2 slots: Utility x2 728 | -9/Materials | Repaired Lgt. Treads 1114 | -9/Materials | Repaired Imp. Assault Rifle 1146 | -9/Materials | Core integrity fell below 50% 1300 | -9/Materials | Build established: Scavenger-Mutant 1372 | -9/Materials | Discovered new exit (range 9) 1834 | -9/Materials | Discovered new exit (range 16) 2498 | -9/Materials | Core integrity fell below 20% 2544 | -9/Materials | Destroyed by G-34 Mercenary with Small Laser Last Messages --------------- Imp. Heat Sink destroyed. S-10 Pest destroyed. K-01 Serf collects debris. U-05 Engineer lays Concrete. S-10 Pest destroyed. U-05 Engineer lays Concrete. K-01 Serf collects debris. U-05 Engineer lays Concrete. Lgt. Treads destroyed. U-05 Engineer lays Concrete. K-01 Serf collects debris. U-05 Engineer lays Concrete. K-01 Serf collects debris. U-05 Engineer lays Concrete. U-05 Engineer builds a Wall. G-34 Mercenary destroyed. The unstable cave ceiling collapses. K-01 Serf collects debris. U-05 Engineer builds a Wall. K-01 Serf collects debris. Map ----- +----------------------------------------------------+ | =##????????## """" # # """ """ ##????????? | | #####????????############ # """ """???????????? | | ??###????????############ #########???????????? | | ???????????????????????## #########???????????? | | ???????????????????????## ##??????????????????? | | ???????????????????????## #########???????????? | | ???????????????????????## #########???????????? | | ???????????????????????## # ##???????????? | | ??????????????????????? # # """ ##???????????? | | ??????????????????????? # # """ ##???????????? | | ??????????????????????? + + """ ##???????????? | | ??????????????????????? # # ##???????????? | | ??????????????????????? # # ##???????????? | | ??????????????????????? #a #####+###???????????? | | ???????????????????????##^ ##### ###???????????? | | ???????????????????????## ^ ##?## ##????????????? | | ?????o?????????????????## ##?## ##????????????? | | ???????????????????????## ##?## #############?? | | ???????????????????????## ##?## #############?? | | ???????????? ? ######### m##### ### ##?? | | ????????????? ######### ##### ### """##?? | | ?????????????? a #### ### """##?? | | ???????????## ? a # # """##?? | | ??????????? # ? """ + ##?? | | ??????????? # """ %# """##?? | | ??????????? # """ # @ #####+# """##?? | | ??????????? # ## g # # """##?? | | ??????????? # # # = u ##?? | | ??????????? # = g !%= g k ######+###?? | | ???????????###??#### [ % ###### ###?? | | ????????????????"" # # !=k% ! ##??? | | ?????????????????? # # ==%=% ########??? | | ?????????????????? # #######/############??? | | ?????????????????? # ###????????? | | ?????????????????? ##?????????? | | ?????????????????" # ##?????????? | | ???????????????? # +####### ##?????????? | | ????????????? # = # ## # ?????????? | | ?????????????####### = # ?????## # ?????????? | | ????????????? # ? ?????## # ?????????? | | ????????????????? * ?] ?????## # ?????????? | | ?????????????????"# % ? ???????? + ?????????? | | ?????????????????"# ??!???????# # ?????????? | | ??????????????????## ??? ???????### # ?????????? | | ?????????????????????????????????### # ?????????? | | ???????????????????????????????????? ##?????????? | | ???????????????????????????????????? ##?????????? | | ???????????????????????????????????? ##?????????? | | ????????????????????????????????????????????????? | | ????????????????????????????????????????????????? | +----------------------------------------------------+ Best States ------------- Heat Dissipation 42 Energy Generation 14 Energy Capacity 265 Matter Stores 300 Matter Capacity 300 Sight Range 16 Terrain Scan Density 10 Armor Coverage 225 Evasion (%) 40 Targeting Accuracy 5 Recoil Reduction 2 Item Schematics ----------------- Structural Scanner | -9/Materials | Extracted Aluminum Leg | -9/Materials | Extracted Robot Schematics ------------------ None Fabricated ------------ Nothing Alien Tech Used ----------------- None Achievements -------------- None Challenges ------------ None Game ------ Seed SystemHelicalMapper Manual? 0 Play Time 00:17:43 Cumulative 102.4 hours Start 2024.09.05 @ 17:40:32 End 2024.09.05 @ 17:57:03 Sessions 1 Manual Loads 0 Difficulty Rogue Special Mode None Game No. 95 Rogue 95 Adventurer 0 Explorer 0 Win Type - Total 1 Types 1/0/0/0/0/0/0/0/0 Lore% 36 Gallery% 50 Achievement% 39 Wizard Run 0 Options --------- Layout 2 ASCII 0 Keyboard 0 Movement Arrows Keybinds 0 Fullscreen 1 Font 16/Terminus Map View 55x47 Zoom Use 0% Tactical HUD 0 Map Filters NONE Filters NONE Steam 1 RUN: ed1e44c0-c005-4d9f-97cd-4cbc84dcf3c2